Cogmind - Beta 14 *** ADVENTURER MODE // 2024.08.19 @ 14:08:29 Player: Bob Result: Destroyed by as-94018 with Assembled Heavy Rifle Performance ------------- Evolutions (0) 0 Regions Visited (0) 0 Robots Destroyed (0) 0 Value Destroyed (0) 0 Prototype IDs (0) 0 Alien Tech Used (0) 0 Bonus (0) 0 TOTAL SCORE: 0 Bonus ------- None Cogmind --------- Core Integrity 0/250 Matter 199/300 Energy 88/100 System Corruption 0% Temperature Cool (0) Movement Walking (120) Location -11/Scrapyard Parts ------- > --- POWER (1) -------- (None) > --- PROPULSION (2) --- Aluminum Leg > --- UTILITY (2) ------ (None) > --- WEAPON (2) ------- (None) > --- INVENTORY (5) ---- (None) Peak State ------------ > --- POWER ------------ Light Ion Engine > --- PROPULSION ------- Light Treads Light Treads > --- UTILITY ---------- Small Storage Unit > --- WEAPON ----------- Assault Rifle Light Assault Rifle > --- INVENTORY -------- (None) [Rating: 6] Favorites ----------- Power Light Ion Engine Engine Light Ion Engine Propulsion Light Treads Treads Light Treads Leg Aluminum Leg Utility Small Storage Unit Storage Small Storage Unit Weapon Assault Rifle Energy Gun Small Laser Ballistic Gun Assault Rifle Build | -11 ------- Run | Yrd Slots Evolved . | . Power . | . Propulsion . | . Utility . | . Weapon . | . Parts Attached 11 | 11 Power 2 | 2 Engine 2 | 2 Core . | . Reactor . | . Propulsion 5 | 5 Treads 2 | 2 Leg 3 | 3 Wheel . | . Hover . | . Flight . | . Utility 1 | 1 Device . | . Storage 1 | 1 Processor . | . Hackware . | . Protection . | . Artifact . | . Weapon 3 | 3 Energy Gun 1 | 1 Energy Cannon . | . Ballistic Gun 2 | 2 Ballistic Cannon . | . Launcher . | . Special Weapon . | . Impact Weapon . | . Slashing Weapon . | . Piercing Weapon . | . Special Melee Weapon . | . Unidentified Prototypes . | . Parts Lost 2 | 2 Power 1 | 1 Propulsion . | . Utility . | . Weapon 1 | 1 Highest Loss Streak 1 | 1 To Critical Strikes . | . Average Slot Usage (%) . | . Peak Build Rating 6 | 6 Average Rating 5 | 5 On Entrance . | . Naked Turns . | . Heaviest Build 11 | 11 Greatest Support 40 | 40 Greatest Overweight (x) . | . Average Overweight (x) . | . Largest Inventory Capacity 8 | 8 Average Capacity 7 | 7 Most Carried 4 | 4 Average Carried . | . Final Capacity 5 | 5 Final Carried . | . Class Distribution -------------------- None Dominant Class ---------------- None Resources | -11 ----------- Run | Yrd Matter Collected 199 | 199 Remotely . | . Salvage Created 68 | 68 Parts . | . Haulers Intercepted . | . Recyclers Shooed . | . Parts Field Recycled . | . Retrieved Matter . | . Parts Self-Destructed . | . Prevented . | . Kills | -11 ------- Run | Yrd Combat Hostiles Destroyed 5 | 5 Guns 5 | 5 Classes Destroyed 1 | 1 Assembled 5 | 5 Best Kill Streak 5 | 5 Combat Bots Only 5 | 5 Max Kills in Single Turn 1 | 1 Gunslinging . | . Exploded . | . Melee . | . Uniques/NPCs Destroyed . | . Combat | -11 -------- Run | Yrd Hostile Shots Fired 55 | 55 Missed 19 | 19 Damage Taken 521 | 521 Core 254 | 254 Absorbed by Shields . | . Ignored by Resistances 144 | 144 Core Remaining (%) . | . Volleys Fired 20 | 20 Largest 1 | 1 Hottest 40 | 40 Shots Fired 20 | 20 Gun 20 | 20 Cannon . | . Launcher . | . Special . | . Kinetic . | . Thermal 20 | 20 Explosive . | . Electromagnetic . | . Robot Hit Streak 9 | 9 Robot Miss Streak 2 | 2 Penetration Max . | . Secondary Targets . | . Shots Hit Robots 16 | 16 Core Hits 8 | 8 Critical Kills . | . Critical Parts Destroyed . | . Critical Strikes . | . Melee Attacks . | . Impact . | . Slashing . | . Piercing . | . Sneak Attacks . | . Combat Hostiles . | . Follow-up Attacks . | . Damage Inflicted 177 | 177 Guns 177 | 177 Cannons . | . Explosions . | . Melee . | . Ramming . | . Kinetic . | . Thermal 177 | 177 Explosive . | . Electromagnetic . | . Impact . | . Slashing . | . Piercing . | . Highest Corruption . | . Average Corruption . | . Corruption Purged . | . Corruption Blocked . | . Overload Shots . | . Overflow Damage . | . Projectiles . | . Explosions . | . Melee . | . Knockbacks . | . Impact . | . Kinetic . | . Secondary . | . Self-Inflicted Damage . | . Shots . | . Rammed . | . Targets Rammed . | . Kicked . | . Crushed . | . Highest Temperature 35 | 35 Average Temperature 19 | 19 Received Heat Transfer 240 | 240 Siege Activations . | . Robots Corrupted . | . Combat Hostiles . | . Parts Fried . | . Impact Corruptions . | . Robots Melted . | . Combat Hostiles . | . Parts Melted . | . Heat Transferred 400 | 400 Parts Sabotaged . | . Parts Stolen . | . Parts Stripped . | . Power Chain Reactions . | . Alert | -11 ------- Run | Yrd Peak Influence . | . Initial . | . Average . | . Maximum Alert Level . | . Low Security (%) 100 | 100 Level 1 . | . Level 2 . | . Level 3 . | . Level 4 . | . Level 5 . | . High Security . | . Max Security . | . Squads Dispatched . | . Investigation . | . Extermination . | . Reinforcement . | . Assault . | . Garrison . | . Intercept . | . Searches Triggered . | . Construction Impeded . | . Haulers Reinforced . | . Active Scanning Responses . | . Cargo Convoy Interrupts . | . Stealth | -11 --------- Run | Yrd Distress Signals . | . Communications Jammed . | . Distress Signals . | . Times Spotted 29 | 29 Peak Tracking Total 22 | 22 Tactical Retreats 2 | 2 Traps | -11 ------- Run | Yrd Traps Triggered . | . Indirectly . | . Trap Hack Attempts . | . Triggered . | . Disarmed . | . Reprogrammed . | . Reused . | . Traps Extracted . | . Installed . | . Triggered . | . Machines | -11 ---------- Run | Yrd Machines Disabled . | . Max in Single Turn . | . Machines Repaired . | . Machines Dismantled . | . Machines Sabotaged . | . Overloaded Fab Kills . | . Hacking | -11 --------- Run | Yrd Machines Accessed . | . Terminals . | . Fabricators . | . Repair Stations . | . Recycling Units . | . Scanalyzers . | . Garrison Access . | . Total Hacks . | . Successful . | . Failed . | . Catastrophic . | . Database Lockouts . | . Manual . | . Terminals . | . Fabricators . | . Repair Stations . | . Recycling Units . | . Scanalyzers . | . Garrison Access . | . Terminal Hacks . | . Fabricator Hacks . | . Repair Station Hacks . | . Recycling Unit Hacks . | . Scanalyzer . | . Garrison Access Hacks . | . Unauthorized Hacks . | . Terminals . | . Fabricators . | . Repair Stations . | . Recycling Units . | . Scanalyzers . | . Garrison Access . | . Data Cores Recovered . | . Used . | . Hacking Detections . | . Full Trace Events . | . Feedback Events . | . Feedback Blocked . | . Robot Schematics Acquired . | . Robots Built . | . Authchips . | . Time . | . Total Robot Build Rating . | . Part Schematics Acquired . | . Parts Built . | . Authchips . | . Time . | . Total Part Build Rating . | . Parts Repaired . | . Time . | . Parts Recycled . | . Recycled Matter . | . Retrieved Matter . | . Retrieved Components . | . Parts Scanalyzed . | . Part Schematics Acquired . | . Parts Damaged . | . Bothacking | -11 ------------ Run | Yrd Used RIF Installer . | . Robots Hacked . | . Non-combat . | . Combat . | . Robot Hacks Applied . | . Relay Couplers Released . | . Fabnet Peak Effective % . | . Robots Rewired . | . Allies Hacked . | . Hacks Repelled . | . Allies | -11 -------- Run | Yrd Total Allies . | . Largest Group . | . Highest-Rated Group . | . Highest-Rated Ally . | . Total Orders . | . Ally Attacks . | . Total Damage . | . Kills . | . Allies Corrupted . | . Allies Melted . | . Intel | -11 ------- Run | Yrd Robot Analysis Total . | . Derelict Logs Recovered . | . Drone Launches . | . Drone Recoveries . | . Exploration | -11 ------------- Run | Yrd Turns Passed 1237 | 1237 Spaces Moved 334 | 334 Core 82 | 82 Treads 148 | 148 Legs 104 | 104 Wheels . | . Hover . | . Flight . | . Fastest Speed 50 | 50 Average Speed 120 | 120 Slowest Speed 160 | 160 Overloaded Moves . | . Propulsion Burnouts . | . Robots Hopped . | . Cave-ins Triggered . | . Exploration Rate (%) 30 | 30 Regions Visited . Branch Regions . Pre-discovered Areas . | . Known Exits Taken . | . Unknown Exits Taken . | . Scrap Searched . | . Spaces Dug . | . Terrain Destroyed . | . Melee . | . Projectile . | . AOE . | . Terrain Rammed . | . Walls Destroyed . | . Machines Disabled . | . Actions | -11 --------- Run | Yrd Total 1151 | 1151 Wait 770 | 770 Move 334 | 334 Hop . | . Pick Up 11 | 11 Fast Attach . | . Attach 11 | 11 Detach . | . Swap . | . Drop 5 | 5 Fire 20 | 20 Melee . | . Ram . | . Kick . | . Crush . | . Escape Stasis . | . Rewire . | . Trap . | . Miscellaneous . | . Route ------- -11/Scrapyard (discovered 1 exit: [*Mat]) History --------- Turn | Location | Event 10 | -11/Scrapyard | Discovered new exit (range 16) 1009 | -11/Scrapyard | Assembled infested the area 1208 | -11/Scrapyard | Core integrity fell below 50% 1225 | -11/Scrapyard | Core integrity fell below 20% 1238 | -11/Scrapyard | Destroyed by as-94018 with Assembled Heavy Rifle Last Messages --------------- 01032_ C-30 ARC bursts open, deploying its payload. 01032_ D-53 Grenadier unfolds itself. 01032_ Lgt. Ion Engine destroyed. 01035_ as-45556 destroyed. 01035_ as-00411 destroyed. 01037_ as-70534 destroyed. 01050_ Acquired Aluminum Leg. 01057_ Acquired Lgt. Ion Engine. 01066_ Acquired Sml. Laser. 01115_ T-07 Excavator is excavating. 01196_ Aluminum Leg severed. 01199_ as-61122 destroyed. 01205_ Lgt. Ion Engine severed. 01207_ as-58109 destroyed. 01207_ Aluminum Leg severed. 01217_ as-55790 destroyed. 01225_ as-43955 destroyed. 01233_ as-35174 destroyed. 01234_ Sml. Laser destroyed. 01235_ Acquired Aluminum Leg. Map ----- +----------------------------------------------------+ | ??????????# #####??#############??????? = #? | | ??????????# #?????????????????????????? % #? | | ??????????# #?????????????????????????? = #? | | ??????????# #????????????????????####### #? | | ??????????# #????????????????????# ##? | | ??????????# #????????????????????# # #?# | | ??????????# #????????????????????# # #? | | ??????????# #????????????????????# # #? | | ??????????# #????????????????????# # # | | ??????????# #????????????????????# # # | | ??????????# #????????????????????# | | ??????????# #????????????????????# # # | | ?????????## ##???????????????????# # #### | | ?????????# #???????????????????########## #??? | | ?????????## ##??#######?????????????####### #??? | | ??????????# #??? #?????????????# # #??? | | ??????????# #?? #?????????????# # #### | | ??????????# #? #?????????????# | | ??????????# # #?????????????# # | | ??????????# # #?????????????# # | | ??????????# #?????????????####### #### | | ??????????# # #???##########???# # | | ??????????# # #???# #???# % # | | ?????????## ###########???# #???# # | | ?????????# ############## = ##### | | ?????????# @*% a | | ?????????# %% % # | | ?????????# ############## ##### < # | | ?????????######????????????# = #???# # | | ???????????????????????????# #???########## | | ???????????????????????????#### ####????????????? | | ??????????????????????????????# #???????????????? | | ??????????????????????????????# #???????????????? | | ?????????????????????????????? ???????????????? | | ????????????????????????????? # # ??????????????? | | ???????????????????????????? # # ?????????????? | | ??????????????????????????? ?# #? ????????????? | | ??????????????????????????###?# #?###???????????? | | ??????????????????????????????# #???????????????? | | ??????????????????????????????# #???????????????? | | ?????????????????????????????? ???????????????? | | ??????????????????????????????# #???????????????? | | ??????????????????????????????? ????????????????? | | ??????????????????????????????? ????????????????? | | ?????????????????????????????????????????????????? | | ?????????????????????????????????????????????????? | | ?????????????????????????????????????????????????? | | ?????????????????????????????????????????????????? | | ?????????????????????????????????????????????????? | | ?????????????????????????????????????????????????? | +----------------------------------------------------+ Best States ------------- Heat Dissipation 25 Energy Generation 10 Energy Capacity 125 Matter Stores 244 Matter Capacity 300 Sight Range 16 Terrain Scan Density 10 Resistance: KI 20 Resistance: TH 20 Resistance: EX 20 Resistance: EM 20 Resistance: I 20 Resistance: S 20 Resistance: P 20 Evasion (%) 55 Recoil Reduction 2 Offensive Hacking 10 Item Schematics ----------------- None Robot Schematics ------------------ None Fabricated ------------ Nothing Alien Tech Used ----------------- None Achievements -------------- Curiosity Killed The Cat Challenges ------------ None Game ------ Seed PiercingOpticalCharger Manual? 0 Play Time 00:06:30 Cumulative 210.1 hours Start 2024.08.19 @ 14:05:12 End 2024.08.19 @ 14:08:29 Sessions 0 Manual Loads 0 Difficulty Adventurer Special Mode None Game No. 314 Rogue 241 Adventurer 73 Explorer 0 Win Type - Total 5 Types 2/1/0/2/0/0/0/0/0 Lore% 40 Gallery% 59 Achievement% 57 Wizard Run 0 Options --------- Layout 1 ASCII 0 Keyboard 0 Movement Arrows Keybinds 0 Fullscreen 1 Font 16/SmallcapsGlow Map View 55x38 Zoom Use 0% Tactical HUD 1 Map Filters NONE Filters NONE Steam 1 RUN: d0a4f2de-b6c5-4fbe-9ecf-a534b7cdda99